Cogmind - Beta 15 @@@ ROGUE MODE // 2025.07.05 @ 06:02:49 Player: Florist Result: Destroyed self via exploding Fusion Modulator Performance ------------- Evolutions (6) 3000 Regions Visited (20) 4000 Robots Destroyed (394) 1970 Value Destroyed (12568) 12568 Prototype IDs (57) 1140 Alien Tech Used (0) 0 Bonus (3504) 3504 TOTAL SCORE: 26182 Bonus ------- High Alert Combat Kills 999 Follower Combat Kills 347 Aligned with FarCom 300 Met Imprinter 300 Met Warlord at Base 500 MAIN.C Attacked Warlord 500 Warlord Defense Kills 976 Friendly Fire -418 Cogmind --------- Core Integrity 0/1150 Matter 290/300 Energy 10/100 System Corruption 14% Temperature Cool (12) Movement Core (150) Ox2 Location -4/Factory Parts ------- > --- POWER (1) -------- (None) > --- PROPULSION (4) --- Improved Q-thruster Improved Q-thruster > --- UTILITY (11) ----- Advanced Signal Interpreter Experimental Signal Interpreter Improved Targeting Computer Experimental Targeting Computer Improved Target Analyzer Experimental Core Analyzer Experimental Core Analyzer Armor Integrity Analyzer > --- WEAPON (3) ------- Vortex Rail > --- INVENTORY (5) ---- Advanced Heat Sink Long-range Tractor Beam Vortex Rail (40) 8R-AWN's Boregun Peak State ------------ > --- POWER ------------ Neutrino Core > --- PROPULSION ------- Heavy Treads Heavy Treads > --- UTILITY ---------- High-capacity Storage Unit Enhanced Optical Array Improved Targeting Computer Experimental Targeting Computer Improved Target Analyzer Armor Integrity Analyzer Layered Heavy Armor Plating Layered Heavy Armor Plating Long-range Tractor Beam > --- WEAPON ----------- Hypervelocity Mass Driver Hypervelocity Mass Driver Hypervelocity Mass Driver > --- INVENTORY -------- Armored Medium Treads Advanced Heat Sink Improved Cooling System High-capacity Storage Unit Medium Matter Pod Advanced Signal Interpreter Vortex Rail Vortex Rail Coil Gun Coil Gun KE Penetrator 8R-AWN's Boregun 8R-AWN's Boregun Missile Launcher Makeshift Laser Shovel [Rating: 112] Favorites ----------- Power Improved Deuterium Engine Engine Improved Deuterium Engine Power Core Light Nuclear Core Reactor Antimatter Reactor Propulsion Light Treads Treads Light Treads Leg Advanced Myomer Leg Flight Unit Improved Q-thruster Utility High-capacity Storage Unit Device Seismic Detector Storage High-capacity Storage Unit Processor Improved Armor Integrity Analyzer Protection Improved Light Armor Plating Weapon Advanced Beam Rifle Energy Gun Advanced Beam Rifle Energy Cannon Advanced Plasma Cannon Ballistic Gun Heavy Assault Rifle Ballistic Cannon Hypervelocity Mass Driver Launcher Rocket Launcher Special Weapon RU-N14's Throwing Claymores Impact Weapon Power Maul Slashing Weapon Phasing Sabre Special Melee Weapon Datajack Build | -11 -10 -9 -9 -9 -8 -8 -7 -7 -7 -7 -6 -6 -6 -6 -5 -5 -5 -5 -4 -4 ------- Run | Yrd Mat Mat Min Exi Min Mat Fac Low Low Zio Pro Fac Low Low Fac Upp Upp War Pro Fac Slots Evolved 12 | . . 2 . . . 2 2 . . . . 2 . . 2 . . . . 2 Power . | . . . . . . . . . . . . . . . . . . . . . Propulsion 2 | . . 1 . . . 1 . . . . . . . . . . . . . . Utility 9 | . . . . . . 1 2 . . . . 2 . . 2 . . . . 2 Weapon 1 | . . 1 . . . . . . . . . . . . . . . . . . Parts Attached 214 | 7 7 27 7 11 . 17 14 3 1 20 . 15 5 10 10 7 3 10 3 37 Power 21 | 1 1 5 1 1 . 3 1 . . 3 . . 1 . . 1 . 1 . 2 Engine 14 | 1 1 5 1 1 . 1 . . . 2 . . 1 . . 1 . . . . Core 6 | . . . . . . 2 1 . . 1 . . . . . . . 1 . 1 Reactor 1 | . . . . . . . . . . . . . . . . . . . . 1 Propulsion 54 | 2 . 8 3 1 . 7 4 1 . 6 . 2 3 1 5 1 1 . . 9 Treads 45 | 2 . 8 3 . . 4 4 1 . 6 . 2 3 1 5 1 . . . 5 Leg 4 | . . . . 1 . 3 . . . . . . . . . . . . . . Wheel . | . . . . . . . . . . . . . . . . . . . . . Hover . | . . . . . . . . . . . . . . . . . . . . . Flight 5 | . . . . . . . . . . . . . . . . . 1 . . 4 Utility 69 | 2 4 3 . 2 . 2 3 1 . 5 . 8 1 3 4 2 1 7 2 19 Device 27 | 1 1 . . 1 . . 2 . . 4 . 4 1 2 1 . . 4 1 5 Storage 5 | 1 3 . . . . . . . . . . . . . . . . . . 1 Processor 15 | . . . . 1 . . . . . . . 3 . . 2 . . 1 . 8 Hackware . | . . . . . . . . . . . . . . . . . . . . . Protection 22 | . . 3 . . . 2 1 1 . 1 . 1 . 1 1 2 1 2 1 5 Artifact . | . . . . . . . . . . . . . . . . . . . . . Weapon 70 | 2 2 11 3 7 . 5 6 1 1 6 . 5 . 6 1 3 1 2 1 7 Energy Gun 17 | . . . . . . . 5 . 1 1 . 3 . 2 1 2 . 1 . 1 Energy Cannon 4 | . . 1 1 1 . . . . . . . . . . . . . . 1 . Ballistic Gun 29 | 2 1 7 2 4 . 4 1 . . . . 1 . 1 . 1 1 1 . 3 Ballistic Cannon 3 | . . . . . . . . . . . . . . . . . . . . 3 Launcher 8 | . . 2 . 2 . 1 . 1 . . . 1 . 1 . . . . . . Special Weapon 5 | . . . . . . . . . . 4 . . . 1 . . . . . . Impact Weapon 2 | . . 1 . . . . . . . 1 . . . . . . . . . . Slashing Weapon 1 | . . . . . . . . . . . . . . 1 . . . . . . Piercing Weapon . | . . . . . . . . . . . . . . . . . . . . . Special Melee Weapon 1 | . 1 . . . . . . . . . . . . . . . . . . . Unidentified Prototypes 22 | . . 3 . 3 . 1 1 . . 3 . 3 . 1 . . . 3 . 4 Corrupted Parts 1 | . . . . . . . . . . . . . . 1 . . . . . . System Corruption 10 | . . . . . . . . . . . . . . 10 . . . . . . Parts Lost 77 | . 2 1 . 5 1 7 9 . . 5 . 2 2 4 2 3 . 2 3 29 Power 10 | . 1 1 . 1 . 2 1 . . 1 . . 1 . . . . . . 2 Propulsion 20 | . . . . 4 1 1 4 . . 2 . . . . . . . . . 8 Utility 25 | . 1 . . . . 1 1 . . 2 . 1 . 2 1 2 . 2 2 10 Weapon 22 | . . . . . . 3 3 . . . . 1 1 2 1 1 . . 1 9 Highest Loss Streak 13 | . 1 1 . 5 1 2 3 . . 2 . 2 1 2 1 1 . 1 2 13 To Critical Strikes 8 | . . . . 5 1 . . . . . . . . . . . . . . 2 Average Backups 16 | 3 13 19 18 12 17 17 16 18 18 17 17 16 13 17 17 18 18 18 17 17 Power . | . 1 . . . . . . . . . . . . . . . . . . . Propulsion 3 | 1 2 4 3 . 2 3 4 4 4 3 2 2 2 3 3 4 4 4 3 1 Utility 4 | . 1 6 5 3 7 6 4 4 4 4 6 5 6 7 5 4 3 2 2 3 Weapon 8 | . 6 8 8 7 8 7 6 10 10 9 9 8 5 6 7 9 9 10 10 10 Tool/Special . | . . . . . . . . . . . . . . . . . . . . . Unused Backups 49 | . 1 15 4 8 1 1 2 . 1 1 . . 1 . . 6 1 3 . 4 Power 3 | . . . . 3 . . . . . . . . . . . . . . . . Propulsion 7 | . . 2 . . . . . . . 1 . . . . . 1 1 2 . . Utility 18 | . . 3 4 3 1 1 . . 1 . . . . . . 3 . . . 2 Weapon 21 | . 1 10 . 2 . . 2 . . . . . 1 . . 2 . 1 . 2 Tool/Special . | . . . . . . . . . . . . . . . . . . . . . Average Slot Usage (%) 94 | . 99 93 100 81 90 95 95 100 100 99 100 99 99 92 89 96 92 91 84 76 Engine 5 | . 13 7 11 9 11 3 . . . 5 . . 1 6 5 5 5 4 . . Core 1 | . . . . . . 4 6 7 7 . 7 6 3 . . . . . 5 2 Treads 27 | . 28 32 33 32 24 30 27 30 30 29 30 26 26 26 22 21 16 17 17 12 Device 9 | . 13 . . . . . 12 15 15 14 15 14 13 8 12 13 10 9 8 5 Storage 7 | . 14 11 11 11 11 9 7 7 7 7 7 6 6 6 5 5 5 5 5 4 Processor 9 | . . . . 1 11 9 7 7 7 7 7 18 20 14 17 23 23 18 23 26 Protection 7 | . . 8 11 9 . 8 9 7 7 6 7 5 6 8 5 8 11 14 5 6 Energy Gun 10 | . . . . . . . 8 23 21 20 23 19 19 15 16 9 9 9 2 . Ballistic Gun 10 | . 27 32 32 16 33 26 13 . . 1 . . . 2 . 4 5 6 9 7 Peak Build Rating 112 | 7 8 18 19 50 33 49 48 49 50 72 63 79 73 71 85 95 93 102 99 112 Average Rating 51 | 5 7 15 18 22 32 41 44 48 48 56 62 74 70 66 75 89 89 91 96 97 On Entrance 52 | . 7 8 18 19 33 32 42 48 45 50 63 63 74 71 64 85 90 93 96 92 Naked Turns . | . . . . . . . . . . . . . . . . . . . . . Heaviest Build 117 | 13 48 57 60 62 53 64 68 64 64 75 67 69 72 88 82 88 89 99 104 117 Greatest Support 140 | 40 40 63 60 60 60 88 88 82 82 96 96 112 112 104 110 124 124 125 125 140 Greatest Overweight (x) 17 | . 1 1 . 17 1 2 1 . . 1 . . 1 1 . . . . . 3 Average Overweight (x) . | . . . . . . . . . . . . . . . . . . . . . Largest Inventory Capacity 20 | 8 20 20 20 20 20 20 20 20 20 20 20 20 20 20 20 20 20 20 20 20 Average Capacity 19 | 7 18 20 20 20 20 20 20 20 20 20 20 20 20 20 20 20 20 20 20 19 Most Carried 20 | 5 17 20 20 20 20 20 20 20 20 20 20 20 19 20 20 20 20 20 20 20 Average Carried 18 | 3 13 19 19 15 19 19 18 20 19 19 20 19 15 19 18 19 19 19 19 18 Final Capacity 20 | 8 20 20 20 20 20 20 20 20 20 20 20 20 20 20 20 20 20 20 20 5 Final Carried 20 | 5 16 19 20 20 20 20 20 20 20 20 20 20 19 19 19 20 20 20 17 4 Class Distribution -------------------- 46% | Scavenger-Gunner 23% | Scavenger-Tank 11% | Scavenger-Skirmisher 8% | Scavenger-Mutant 5% | Mutant Dominant Class ---------------- Mutant | -10/Materials Scavenger-Tank | -9/Materials Scavenger-Tank | -9/Mines Scavenger-Mutant | -9/Exiles Scavenger-Gunner | -8/Mines Scavenger-Gunner | -8/Materials Scavenger-Gunner | -7/Factory Scavenger-Gunner | -7/Lower Caves Scavenger-Gunner | -7/Lower Caves Scavenger-Gunner | -7/Zion Scavenger-Gunner | -6/Proximity Caves Scavenger-Skirmisher | -6/Factory Scavenger-Skirmisher | -6/Lower Caves Scavenger-Skirmisher | -6/Lower Caves Scavenger-Skirmisher | -5/Factory Scavenger-Mutant | -5/Upper Caves Scavenger-Tank | -5/Upper Caves Scavenger-Tank | -5/Warlord Scavenger-Tank | -4/Proximity Caves Scavenger-Gunner | -4/Factory Resources | -11 -10 -9 -9 -9 -8 -8 -7 -7 -7 -7 -6 -6 -6 -6 -5 -5 -5 -5 -4 -4 ----------- Run | Yrd Mat Mat Min Exi Min Mat Fac Low Low Zio Pro Fac Low Low Fac Upp Upp War Pro Fac Matter Collected 10857 | 272 239 1168 175 878 70 1086 632 10 50 2229 35 167 210 98 24 522 130 342 267 2253 Remotely 1030 | . . . . . . . . . . . . . . . . . . . . 1030 Salvage Created 16015 | 142 543 1738 208 463 136 1747 1010 74 . 2570 400 919 293 603 172 557 277 518 366 3279 Parts 915 | 14 50 124 10 60 20 111 48 2 . 185 11 29 17 15 9 20 11 15 8 156 Haulers Intercepted 17 | . 2 6 . . . 3 1 . . . . 3 . . . . . . . 2 Recyclers Shooed 11 | . 1 . . . . 1 1 . . . . 5 . . . . . . . 3 Parts Field Recycled . | . . . . . . . . . . . . . . . . . . . . . Retrieved Matter . | . . . . . . . . . . . . . . . . . . . . . Parts Self-Destructed 65 | . . . . . . . . 1 . . 11 . 15 13 . 15 3 . 7 . Prevented 6 | . . . . . . . . . . . . . 1 1 . 4 . . . . Kills | -11 -10 -9 -9 -9 -8 -8 -7 -7 -7 -7 -6 -6 -6 -6 -5 -5 -5 -5 -4 -4 ------- Run | Yrd Mat Mat Min Exi Min Mat Fac Low Low Zio Pro Fac Low Low Fac Upp Upp War Pro Fac Combat Hostiles Destroyed 237 | . 13 33 5 6 5 29 19 1 . 13 9 6 7 12 4 9 7 7 5 47 Melee 6 | . 1 . . . . . . . . . . . . 4 . . . . . 1 Guns 161 | . 12 25 5 1 5 25 16 1 . 8 8 5 7 6 1 6 6 6 3 15 Cannons 19 | . . . . . . . . . . . . . . . . . . . 2 17 AOE 47 | . . 8 . 5 . 4 3 . . 5 . 1 . 2 2 3 1 . . 13 Classes Destroyed 29 | 3 6 3 . 3 1 1 1 . . 4 1 . . . . . 1 3 . 2 Worker 16 | 1 . 1 . . . 4 2 . . . . 2 . . . . . . . 6 Builder 18 | . 1 4 . . . 3 2 . . . . 1 . . 1 . . . . 6 Tunneler 6 | 3 . . . . 1 1 . . . . . . . . . . . . . 1 Hauler 17 | . 2 6 . . . 3 1 . . . . 3 . . . . . . . 2 Recycler 11 | 1 . . 1 . . 1 1 . . . . 2 . . . . . . . 5 Mechanic 2 | . . . . . . 1 . . . . . . . . . . . . . 1 Operator 5 | . 1 4 . . . . . . . . . . . . . . . . . . Drone 1 | . . . . . . . . . . . 1 . . . . . . . . . Turret 1 | . . . . 1 . . . . . . . . . . . . . . . . Watcher 15 | . 2 5 . . . 4 2 . . . . 1 . . . . . . . 1 Swarmer 52 | . 6 8 3 . 4 3 10 . . . 3 . 3 1 . . 1 . . 10 Saboteur 2 | . . . . . . . . . . . . . . . . . . . . 2 Grunt 80 | . 7 13 1 . . 17 6 . . . 2 1 2 5 . 7 4 3 2 10 Brawler 4 | . . 1 . . . . . . . . 1 . . 2 . . . . . . Duelist 5 | . . 1 1 . . 1 . . . . . . 1 1 . . . . . . Protector 2 | . . . . . . . . . . . . . . . . . . 1 . 1 Sentry 29 | . . 10 . . . 7 2 1 . . 1 . 1 2 . 1 1 . . 3 Specialist 2 | . . . . . . . . . . . . . . . . . . 1 . 1 Hunter 16 | . . . . . 1 1 . . . . . 3 . 1 2 . . 1 . 7 Programmer 18 | . . . . . . . 1 . . . 1 2 . . 2 . . . 2 10 Heavy 2 | . . . . . . . . . . . . . . . . . . . . 2 Behemoth 3 | . . . . . . . . . . . . . . . . 1 . . 1 1 Executioner 1 | . . . . . . . . . . . . . . . . . . 1 . . Zionite 87 | . . . . 8 . . . . . 79 . . . . . . . . . . Tinkerer 7 | . . . . . . . . . . 7 . . . . . . . . . . Master Thief 1 | . . . . . . . . . . . . . . . . . 1 . . . Assembled 5 | . . . . 5 . . . . . . . . . . . . . . . . Surgeon 1 | . . . . . . . . . . 1 . . . . . . . . . . Savage 1 | . . . . . . . . . . 1 . . . . . . . . . . Butcher 2 | . . . . . . . . . . 2 . . . . . . . . . . Marauder 2 | . . . . . . . . . . 2 . . . . . . . . . . Fireman 2 | . . . . . . . . . . 2 . . . . . . . . . . Mutant 5 | . . . . . . . . . . 5 . . . . . . . . . . Best Kill Streak 14 | 3 3 13 4 8 4 14 5 1 . 9 3 4 3 4 3 4 3 4 2 9 Combat Bots Only 9 | . 3 9 3 5 4 7 4 1 . 5 3 3 3 4 2 4 3 4 2 6 Max Kills in Single Turn 4 | 1 1 3 2 3 1 2 3 1 . 2 2 1 1 2 3 3 1 1 1 4 Gunslinging 1 | . . . 1 . . 1 1 . . . 1 . . . . . . . . . Exploded 3 | . . 2 . 2 . 1 3 . . 2 . 1 . 2 2 3 1 . . 3 Melee 1 | . 1 . . . . . . . . . . . . 1 . . . . . 1 Uniques/NPCs Destroyed 5 | . . . . 4 . . . . . 1 . . . . . . . . . . 8R-AWN (-9/Exiles) EX-BIN (-9/Exiles) EX-DEC (-9/Exiles) EX-HEX (-9/Exiles) Imprinter (-7/Zion) Combat | -11 -10 -9 -9 -9 -8 -8 -7 -7 -7 -7 -6 -6 -6 -6 -5 -5 -5 -5 -4 -4 -------- Run | Yrd Mat Mat Min Exi Min Mat Fac Low Low Zio Pro Fac Low Low Fac Upp Upp War Pro Fac Hostile Shots Fired 1791 | . 65 146 6 63 18 128 155 18 . 162 46 58 37 40 36 80 20 59 45 609 Missed 513 | . 13 33 1 12 5 34 35 6 . 56 14 12 15 10 14 20 9 23 12 189 Hits 1278 | . 52 113 5 51 13 94 120 12 . 106 32 46 22 30 22 60 11 36 33 420 Melee 19 | . . . . . . . . . . 11 . . 4 . . . 3 . . 1 Projectile 1259 | . 52 113 5 51 13 94 120 12 . 95 32 46 18 30 22 60 8 36 33 419 AOE 5 | . . . . . . . . . . 2 . 1 . . 2 . . . . . Critical Strikes 53 | . 1 3 . 14 1 4 2 . . 6 1 1 . . . 2 . 1 1 16 Actively Blocked 1 | . . . . . . . . . . . . . . . . . . 1 . . Part Disruptions 3 | . . . . . . . . . . . . . 3 . . . . . . . Damage Taken 22643 | . 563 1407 36 866 190 1352 1534 95 . 1852 462 865 296 859 597 1431 233 821 864 8320 Core 2570 | . 140 170 6 100 34 139 159 15 . 170 . 48 23 232 26 20 . 21 96 1171 Absorbed by Shields . | . . . . . . . . . . . . . . . . . . . . . Reduced by Siege Mode 124 | . . . . . . . . . . . . . . . . . . . . 124 Redirected to Shielding 161 | . . . . . . . . . . . . . . . . . 9 152 . . Ignored by Resistances 20 | . . . . . . . . . . . . . . . . . . . . 20 Regen/Repaired (Parts) 360 | . . . . . . . . . . 143 . . . . . . . 217 . . Core Remaining (%) 62 | 100 44 . . . 22 74 . . . . 50 . . 64 . . . . 83 . Volleys Fired 1969 | 12 67 93 19 60 10 83 60 2 . 1217 30 39 12 21 11 30 21 26 27 129 Largest 3 | 2 2 3 3 3 3 3 3 3 . 3 3 3 3 3 3 3 3 3 3 3 Hottest 217 | 40 40 80 69 120 69 79 153 183 . 183 183 202 202 202 215 201 180 169 217 197 Shots Fired 5402 | 24 134 275 36 121 31 236 170 6 . 3471 88 116 39 40 32 79 51 75 52 326 Gun 5147 | 24 134 265 25 109 31 231 170 6 . 3443 88 113 39 28 32 75 45 75 45 169 Cannon 172 | . . . 11 6 . . . . . . . . . . . . . . 7 148 Launcher 57 | . . 10 . 6 . 5 . . . 12 . 3 . 4 . 2 6 . . 9 Special 26 | . . . . . . . . . . 16 . . . 8 . 2 . . . . Kinetic 1499 | 24 134 265 25 109 31 231 130 . . 167 . . . . . 37 11 27 37 271 Thermal 3807 | . . . 11 6 . . 28 6 . 3276 88 113 39 36 28 35 34 48 15 44 Explosive 73 | . . 10 . 6 . 5 . . . 28 . 3 . 4 . 2 6 . . 9 Electromagnetic 21 | . . . . . . . 12 . . . . . . . 4 5 . . . . Entropic 2 | . . . . . . . . . . . . . . . . . . . . 2 Robot Hit Streak 33 | 11 12 16 8 27 5 14 14 8 . 10 7 12 13 20 26 12 12 12 14 33 Robot Miss Streak 9 | 2 5 2 2 3 1 4 6 . . 9 8 6 4 1 2 2 4 2 1 4 Penetration Max 2 | . . . . 2 . . . . . 1 . . . . . 1 1 1 1 1 Secondary Targets 21 | . 2 3 2 . . 1 2 . . 6 2 . 1 . . 1 . 1 . . Max Gunslinging Chain 1 | . 1 1 1 . . 1 1 . . 1 1 . 1 . . 1 . 1 . . Shots Hit Robots 1606 | 17 96 195 19 74 17 172 118 5 . 300 36 69 26 32 18 54 34 51 43 230 Core Hits 796 | 9 41 93 7 46 8 87 61 3 . 145 13 36 19 25 6 21 20 19 12 125 Critical Kills 37 | . 1 . . 3 . . . . . 9 . . . . . . . 2 1 21 Critical Parts Destroyed 74 | 1 . 2 . 9 . . 1 . . 27 . . . . . . 1 1 1 31 Critical Strikes 159 | 1 1 2 . 12 . . 1 1 . 55 6 4 . 6 2 2 3 7 4 52 Burn 39 | . . . . . . . . 1 . 17 6 4 . 2 2 1 2 4 . . Meltdown 1 | . . . . . . . . . . . . . . . . . . . . 1 Destroy 115 | 1 1 2 . 12 . . 1 . . 38 . . . . . 1 1 3 4 51 Sever 4 | . . . . . . . . . . . . . . 4 . . . . . . Melee Attacks 34 | . . 3 . . . . 6 . . 7 . . . 18 . . . . . . Impact 16 | . . 3 . . . . 6 . . 7 . . . . . . . . . . Slashing 18 | . . . . . . . . . . . . . . 18 . . . . . . Piercing . | . . . . . . . . . . . . . . . . . . . . . Sneak Attacks 4 | . . . . . . . . . . . . . . 4 . . . . . . Combat Hostiles . | . . . . . . . . . . . . . . . . . . . . . Follow-up Attacks . | . . . . . . . . . . . . . . . . . . . . . Damage Inflicted 38535 | 135 790 3080 284 1821 224 3549 2405 100 . 6671 750 2009 557 1355 751 1520 1066 1211 1181 9076 Guns 27276 | 135 789 2414 284 1378 224 2714 2118 100 . 5813 750 1601 557 437 439 1148 637 1211 990 3537 Cannons 2790 | . . . . 137 . . . . . . . . . . . . . . 191 2462 Explosions 7850 | . . 654 . 306 . 826 287 . . 858 . 408 . 349 291 372 429 . . 3070 Melee 569 | . . . . . . . . . . . . . . 569 . . . . . . Ramming 50 | . 1 12 . . . 9 . . . . . . . . 21 . . . . 7 Kinetic 18144 | 135 789 2414 284 1378 224 2714 1414 . . 1723 . . . . . 716 218 562 806 4767 Thermal 12938 | . . . . 137 . . 603 100 . 4090 750 1601 557 437 427 406 419 649 375 2387 Explosive 6581 | . . 654 . 306 . 826 173 . . 858 . 408 . 349 291 372 429 . . 1915 Electromagnetic 253 | . . . . . . . 215 . . . . . . . 12 26 . . . . Impact . | . . . . . . . . . . . . . . . . . . . . . Slashing 569 | . . . . . . . . . . . . . . 569 . . . . . . Piercing . | . . . . . . . . . . . . . . . . . . . . . Highest Corruption 14 | . . 2 2 2 2 . . . . . 2 2 2 13 1 1 1 2 6 14 Average Corruption 2 | . . 2 2 2 2 . . . . . 1 1 2 3 1 1 1 1 5 7 Corruption Purged . | . . . . . . . . . . . . . . . . . . . . . Corruption Blocked . | . . . . . . . . . . . . . . . . . . . . . Effects 223 | . . 15 27 46 10 . . . . . 8 3 22 20 1 13 7 2 18 31 Message Errors 56 | . . 6 6 11 2 . . . . . 4 . 8 6 1 2 2 . 3 5 Matter Fused 58 | . . 6 3 13 6 . . . . . 1 . 8 4 . 2 1 2 4 8 Heat Flow Errors 26 | . . . 6 10 . . . . . . 1 . . 1 . 2 . . 3 3 Energy Discharges 25 | . . 1 4 4 . . . . . . . . . 4 . 4 2 . 2 4 Parts Rejected 2 | . . . . 1 . . . . . . . . . . . . . . . 1 Data Loss (minor) 21 | . . 1 3 3 1 . . . . . . 1 1 4 . 2 1 . 3 1 Data Loss (major) 7 | . . 1 2 1 . . . . . . . . . 1 . . . . 2 . Misfires 10 | . . . 1 2 1 . . . . . . . 3 . . 1 . . . 2 Alerts 8 | . . . 2 1 . . . . . . . 1 2 . . . . . 1 1 Weapon Failures 10 | . . . . . . . . . . . 2 1 . . . . 1 . . 6 Overload Shots . | . . . . . . . . . . . . . . . . . . . . . Overflow Damage 518 | . . . . . . 8 21 . . 30 . . . . 68 . 15 . 16 360 Projectiles 61 | . . . . . . . . . . . . . . . . . . . 16 45 Explosions 457 | . . . . . . 8 21 . . 30 . . . . 68 . 15 . . 315 Melee . | . . . . . . . . . . . . . . . . . . . . . Knockbacks 12 | . . 1 . . . . . . . . . . . . . . . . . 11 Impact 2 | . . 1 . . . . . . . . . . . . . . . . . 1 Kinetic 9 | . . . . . . . . . . . . . . . . . . . . 9 Secondary 1 | . . . . . . . . . . . . . . . . . . . . 1 Self-Inflicted Damage 237 | . . 24 . 1 . 25 39 . . 46 . . . . . . 47 . . 55 Shots 11 | . . 4 . 1 . 1 1 . . 1 . . . . . . 2 . . 1 Rammed 5 | . . 2 . . . 1 . . . . . . . . 1 . . . . 1 Targets Rammed 7 | . 1 2 . . . 2 . . . . . . . . 1 . . . . 1 Kicked . | . . . . . . . . . . . . . . . . . . . . . Crushed 2 | . 1 . . . . 1 . . . . . . . . . . . . . . Highest Temperature 476 | . 69 78 308 315 60 138 268 150 . 476 200 96 257 412 425 310 237 213 232 426 Average Temperature 73 | . 30 21 120 75 27 22 59 80 . 73 73 26 92 184 186 147 71 84 59 108 Received Heat Transfer 3927 | . 267 483 . . . 612 489 36 . 319 159 45 60 162 . 279 54 87 55 820 Effects 26 | . . . . 2 . . . . . 3 . . 1 6 1 6 . . . 7 Shutdowns 4 | . . . . . . . . . . 1 . . . 1 1 . . . . 1 Energy Bleed 5 | . . . . . . . . . . 2 . . 1 . . . . . . 2 Interference 15 | . . . . 2 . . . . . . . . . 3 . 6 . . . 4 Short Circuit 2 | . . . . . . . . . . . . . . 2 . . . . . . Siege Activations 2 | . . . . . . . . . . . . . . . . . . . . 2 Total Turns 32 | . . . . . . . . . . . . . . . . . . . . 32 Longest Duration 17 | . . . . . . . . . . . . . . . . . . . . 17 Martial Activations . | . . . . . . . . . . . . . . . . . . . . . Shielding Activations . | . . . . . . . . . . . . . . . . . . . . . Robots Disrupted . | . . . . . . . . . . . . . . . . . . . . . Combat Hostiles . | . . . . . . . . . . . . . . . . . . . . . Robots Corrupted . | . . . . . . . . . . . . . . . . . . . . . Combat Hostiles . | . . . . . . . . . . . . . . . . . . . . . Parts Fried 3 | . . . . . . . 2 . . . . . . . . 1 . . . . Impact Corruptions . | . . . . . . . . . . . . . . . . . . . . . Robots Melted 5 | . . . . . . . . . . 1 1 . . . 1 . . 1 . 1 Combat Hostiles 4 | . . . . . . . . . . . 1 . . . 1 . . 1 . 1 Parts Melted 62 | . . . . . . . 1 2 . 18 5 8 6 4 4 2 2 5 1 4 Heat Transferred 24980 | . . . . 320 . . 1250 259 . 8894 1776 3261 1130 1041 955 814 888 1333 559 2500 Parts Sabotaged . | . . . . . . . . . . . . . . . . . . . . . Parts Stolen 4 | . . . . . . . . . . . . . 2 . . . 2 . . . Parts Stripped . | . . . . . . . . . . . . . . . . . . . . . Power Chain Reactions 2 | . . . . . . . 2 . . . . . . . . . . . . . Alert | -11 -10 -9 -9 -9 -8 -8 -7 -7 -7 -7 -6 -6 -6 -6 -5 -5 -5 -5 -4 -4 ------- Run | Yrd Mat Mat Min Exi Min Mat Fac Low Low Zio Pro Fac Low Low Fac Upp Upp War Pro Fac Maximum Alert Level 4 | . . 2 1 . . 1 2 . . . . 3 . . . . . . . 4 Low Security (%) 59 | 100 100 21 97 . 100 61 40 . . . . . . . 100 . . . . 30 Level 1 20 | . . 62 2 . . 38 18 . . . . 11 . . . . . . . 3 Level 2 14 | . . 16 . . . . 41 . . . . 31 . . . . . . . 47 Level 3 5 | . . . . . . . . . . . . 57 . . . . . . . 11 Level 4 . | . . . . . . . . . . . . . . . . . . . . 7 Level 5 . | . . . . . . . . . . . . . . . . . . . . . High Security . | . . . . . . . . . . . . . . . . . . . . . Max Security . | . . . . . . . . . . . . . . . . . . . . . Peak Influence 1327 | 10 120 493 227 . 95 386 460 . . . . 902 . . 191 . . . . 1327 Initial 902 | . . 44 177 . . . 158 . . . . 902 . . . . . . . . Average 215 | 1 33 264 28 . 22 186 310 . . . . 703 . . 34 . . . . 489 Influence Increases 8186 | 25 410 1072 125 . 140 903 741 20 . . 185 1170 235 260 237 210 120 155 135 2043 Destroy 0b10 Robot/C 4420 | . 260 660 100 . 100 580 380 20 . . 160 120 140 240 80 180 120 120 100 1060 Destroy 0b10 Robot/NC 465 | 25 30 100 5 . 5 85 40 . . . 5 45 . . 5 . . 5 . 115 Destroy Leader 964 | . 78 202 20 . 20 154 86 . . . 20 48 20 20 20 30 . . 20 226 Allied During Kill 47 | . . . . . . . . . . . . . . . . . . . . 47 Successful Hack 38 | . 12 13 . . . 13 . . . . . . . . . . . . . . Disable Machine 540 | . . . . . . . 165 . . . . 45 . . 90 . . . . 240 Destroy Structure 512 | . . 37 . . . 41 40 . . . . 12 . . 42 . . . . 340 Advance Influence 900 | . . . . . . . . . . . . 900 . . . . . . . . Lose Combat Pursuer 300 | . 30 60 . . 15 30 30 . . . . . 75 . . . . 30 15 15 Influence Decreases 6887 | 25 304 723 580 . 140 554 685 341 84 . 181 822 573 274 94 353 100 67 243 744 Entered New Map 1017 | . . 62 278 . . . 191 151 17 . . 2 131 4 . 53 . 20 108 . Time Decay 4800 | 25 294 651 302 . 140 484 404 190 67 . 181 350 422 230 74 290 100 37 125 434 Search Patrol Dispatched 300 | . . . . . . . . . . . . 300 . . . . . . . . Lost Part 600 | . 10 10 . . . 70 90 . . . . 20 20 40 20 10 . 10 10 290 Lost Ally 20 | . . . . . . . . . . . . . . . . . . . . 20 Purge Threat 150 | . . . . . . . . . . . . 150 . . . . . . . . Squads Dispatched 39 | . 4 3 . . . 5 6 . . . . 5 . 1 2 . . . . 13 Investigation 2 | . 1 . . . . . . . . . . . . . 1 . . . . . Extermination 7 | . . . . . . . 2 . . . . 1 . . 1 . . . . 3 Reinforcement 17 | . 3 3 . . . 2 1 . . . . 4 . . . . . . . 4 Assault 4 | . . . . . . . . . . . . . . 1 . . . . . 3 Garrison 9 | . . . . . . 3 3 . . . . . . . . . . . . 3 Intercept . | . . . . . . . . . . . . . . . . . . . . . Searches Triggered 2 | . . . . . . . . . . . . 2 . . . . . . . . Construction Impeded 2 | . . 1 . . . . . . . . . . . . . . . . . 1 Haulers Reinforced 4 | . . . . . . . 1 . . . . 2 . . . . . . . 1 Active Scanning Responses . | . . . . . . . . . . . . . . . . . . . . . Cargo Convoy Interrupts 1 | . . . . . . . . . . . . . . . . . . . . 1 Stealth | -11 -10 -9 -9 -9 -8 -8 -7 -7 -7 -7 -6 -6 -6 -6 -5 -5 -5 -5 -4 -4 --------- Run | Yrd Mat Mat Min Exi Min Mat Fac Low Low Zio Pro Fac Low Low Fac Upp Upp War Pro Fac Distress Signals 12 | . 2 3 . . . 2 . . . . 2 . . . . . . . . 3 Communications Jammed 27 | . . . . . . . . . . . . . . . . . . . . 27 Distress Signals 27 | . . . . . . . . . . . . . . . . . . . . 27 Times Spotted 442 | . 25 45 5 15 5 42 24 1 . 80 15 12 14 10 5 11 12 38 6 77 Peak Tracking Total 13 | . 4 6 3 11 3 5 4 1 . 5 4 3 3 7 2 5 4 13 2 10 Tactical Retreats 23 | . 1 3 . 5 1 2 2 . . 2 . . 4 . . . . 1 1 1 Traps | -11 -10 -9 -9 -9 -8 -8 -7 -7 -7 -7 -6 -6 -6 -6 -5 -5 -5 -5 -4 -4 ------- Run | Yrd Mat Mat Min Exi Min Mat Fac Low Low Zio Pro Fac Low Low Fac Upp Upp War Pro Fac Traps Triggered 10 | . 1 3 . . . 4 . . . . . . 1 . 1 . . . . . Indirectly . | . . . . . . . . . . . . . . . . . . . . . Trap Hack Attempts 29 | . 29 . . . . . . . . . . . . . . . . . . . Triggered . | . . . . . . . . . . . . . . . . . . . . . Disarmed 2 | . 2 . . . . . . . . . . . . . . . . . . . Reprogrammed . | . . . . . . . . . . . . . . . . . . . . . Reused 5 | . . . . 5 . . . . . . . . . . . . . . . . Traps Extracted . | . . . . . . . . . . . . . . . . . . . . . Installed 10 | . . . . 5 . . . . . 5 . . . . . . . . . . Triggered . | . . . . . . . . . . . . . . . . . . . . . Fabricated Traps 5 | . . . . . . . . . . 5 . . . . . . . . . . Most Traps Carried 5 | . . . 5 5 . . . . . 2 . . . . . . . . . . Machines | -11 -10 -9 -9 -9 -8 -8 -7 -7 -7 -7 -6 -6 -6 -6 -5 -5 -5 -5 -4 -4 ---------- Run | Yrd Mat Mat Min Exi Min Mat Fac Low Low Zio Pro Fac Low Low Fac Upp Upp War Pro Fac Machines Disabled 59 | . . . . 10 . . 11 . . 13 . 3 . . 6 . . . . 16 Max in Single Turn 7 | . . . . 2 . . 4 . . 1 . 1 . . 4 . . . . 7 Garrison Access 1 | . . . . . . 1 . . . . . . . . . . . . . . Machines Repaired . | . . . . . . . . . . . . . . . . . . . . . Machines Dismantled . | . . . . . . . . . . . . . . . . . . . . . Machines Sabotaged . | . . . . . . . . . . . . . . . . . . . . . Overloaded Fab Kills . | . . . . . . . . . . . . . . . . . . . . . Hacking | -11 -10 -9 -9 -9 -8 -8 -7 -7 -7 -7 -6 -6 -6 -6 -5 -5 -5 -5 -4 -4 --------- Run | Yrd Mat Mat Min Exi Min Mat Fac Low Low Zio Pro Fac Low Low Fac Upp Upp War Pro Fac Machines Accessed 30 | . 4 6 . 2 . 7 2 . . 1 . 1 . . 3 1 . 2 . 1 Terminals 21 | . 4 6 . . . 6 2 . . . . 1 . . 1 . . . . 1 Fabricators 1 | . . . . . . . . . . . . . . . 1 . . . . . Repair Stations . | . . . . . . . . . . . . . . . . . . . . . Recycling Units . | . . . . . . . . . . . . . . . . . . . . . Scanalyzers . | . . . . . . . . . . . . . . . . . . . . . Garrison Access 2 | . . . . . . 1 . . . . . . . . 1 . . . . . Total Hacks 67 | . 10 15 . 2 . 16 4 . . 3 . 2 . . 6 1 . 7 . 1 Successful 39 | . 5 8 . 2 . 10 1 . . 3 . 1 . . 1 1 . 7 . . Failed 28 | . 5 7 . . . 6 3 . . . . 1 . . 5 . . . . 1 Catastrophic 7 | . 1 1 . . . . 1 . . . . . . . 3 . . . . 1 Database Lockouts . | . . . . . . . . . . . . . . . . . . . . . Manual 40 | . 8 13 . 1 . 13 2 . . . . 2 . . . . . . . 1 Terminals 48 | . 10 15 . . . 14 4 . . . . 2 . . 2 . . . . 1 Fabricators 1 | . . . . . . . . . . . . . . . 1 . . . . . Repair Stations . | . . . . . . . . . . . . . . . . . . . . . Recycling Units . | . . . . . . . . . . . . . . . . . . . . . Scanalyzers . | . . . . . . . . . . . . . . . . . . . . . Garrison Access 5 | . . . . . . 2 . . . . . . . . 3 . . . . . Terminal Hacks 17 | . 1 2 . 2 . 1 . . . 3 . . . . . 1 . 7 . . Record 1 | . . . . 1 . . . . . . . . . . . . . . . . Part Schematic 3 | . . . . . . . . . . 3 . . . . . . . . . . Robot Analysis 1 | . . 1 . . . . . . . . . . . . . . . . . . Prototype ID Bank 6 | . . . . . . . . . . . . . . . . . . 6 . . Open Door 2 | . . . . . . . . . . . . . . . . 1 . 1 . . Branch Access Points 1 | . . 1 . . . . . . . . . . . . . . . . . . Locate Traps 2 | . 1 . . . . 1 . . . . . . . . . . . . . . Proto ID Catalog 1 | . . . . 1 . . . . . . . . . . . . . . . . Fabricator Hacks 1 | . . . . . . . . . . . . . . . 1 . . . . . Network Status 1 | . . . . . . . . . . . . . . . 1 . . . . . Repair Station Hacks . | . . . . . . . . . . . . . . . . . . . . . Recycling Unit Hacks . | . . . . . . . . . . . . . . . . . . . . . Scanalyzer . | . . . . . . . . . . . . . . . . . . . . . Garrison Access Hacks 1 | . . . . . . 1 . . . . . . . . . . . . . . Seal Access 1 | . . . . . . 1 . . . . . . . . . . . . . . Unauthorized Hacks 20 | . 4 6 . . . 8 1 . . . . 1 . . . . . . . . Terminals 20 | . 4 6 . . . 8 1 . . . . 1 . . . . . . . . Botnet 7 | . 2 1 . . . 3 . . . . . 1 . . . . . . . . Skim 13 | . 2 5 . . . 5 1 . . . . . . . . . . . . . Fabricators . | . . . . . . . . . . . . . . . . . . . . . Repair Stations . | . . . . . . . . . . . . . . . . . . . . . Recycling Units . | . . . . . . . . . . . . . . . . . . . . . Scanalyzers . | . . . . . . . . . . . . . . . . . . . . . Garrison Access . | . . . . . . . . . . . . . . . . . . . . . Data Cores Recovered 3 | . . 3 . . . . . . . . . . . . . . . . . . Used . | . . . . . . . . . . . . . . . . . . . . . Hacking Detections 20 | . 4 4 . . . 5 2 . . . . 1 . . 3 . . . . 1 Full Trace Events 1 | . . . . . . . . . . . . . . . 1 . . . . . Feedback Events . | . . . . . . . . . . . . . . . . . . . . . Feedback Blocked . | . . . . . . . . . . . . . . . . . . . . . Robot Schematics Acquired . | . . . . . . . . . . . . . . . . . . . . . Robots Built . | . . . . . . . . . . . . . . . . . . . . . Authchips . | . . . . . . . . . . . . . . . . . . . . . Time . | . . . . . . . . . . . . . . . . . . . . . Total Robot Build Rating . | . . . . . . . . . . . . . . . . . . . . . Part Schematics Acquired 3 | . . . . . . . . . . 3 . . . . . . . . . . Parts Built . | . . . . . . . . . . . . . . . . . . . . . Authchips . | . . . . . . . . . . . . . . . . . . . . . Time . | . . . . . . . . . . . . . . . . . . . . . Total Part Build Rating . | . . . . . . . . . . . . . . . . . . . . . Parts Repaired . | . . . . . . . . . . . . . . . . . . . . . Time . | . . . . . . . . . . . . . . . . . . . . . Parts Recycled . | . . . . . . . . . . . . . . . . . . . . . Recycled Matter . | . . . . . . . . . . . . . . . . . . . . . Retrieved Matter . | . . . . . . . . . . . . . . . . . . . . . Retrieved Components . | . . . . . . . . . . . . . . . . . . . . . Parts Scanalyzed . | . . . . . . . . . . . . . . . . . . . . . Part Schematics Acquired . | . . . . . . . . . . . . . . . . . . . . . Parts Damaged . | . . . . . . . . . . . . . . . . . . . . . Bothacking | -11 -10 -9 -9 -9 -8 -8 -7 -7 -7 -7 -6 -6 -6 -6 -5 -5 -5 -5 -4 -4 ------------ Run | Yrd Mat Mat Min Exi Min Mat Fac Low Low Zio Pro Fac Low Low Fac Upp Upp War Pro Fac Used RIF Installer . | . . . . . . . . . . . . . . . . . . . . . Robots Hacked . | . . . . . . . . . . . . . . . . . . . . . Non-combat . | . . . . . . . . . . . . . . . . . . . . . Combat . | . . . . . . . . . . . . . . . . . . . . . Robot Hacks Applied . | . . . . . . . . . . . . . . . . . . . . . Relay Couplers Released . | . . . . . . . . . . . . . . . . . . . . . Fabnet Peak Effective % . | . . . . . . . . . . . . . . . . . . . . . Robots Rewired . | . . . . . . . . . . . . . . . . . . . . . Allies Hacked . | . . . . . . . . . . . . . . . . . . . . . Hacks Repelled . | . . . . . . . . . . . . . . . . . . . . . Allies | -11 -10 -9 -9 -9 -8 -8 -7 -7 -7 -7 -6 -6 -6 -6 -5 -5 -5 -5 -4 -4 -------- Run | Yrd Mat Mat Min Exi Min Mat Fac Low Low Zio Pro Fac Low Low Fac Upp Upp War Pro Fac Total Allies . | . . . . . . . . . . . . . . . . . . . . . Largest Group . | . . . . . . . . . . . . . . . . . . . . . Highest-Rated Group . | . . . . . . . . . . . . . . . . . . . . . Highest-Rated Ally . | . . . . . . . . . . . . . . . . . . . . . Total Orders 3 | . . . . . . . . . . 2 . 1 . . . . . . . . EXPLORE 1 | . . . . . . . . . . 1 . . . . . . . . . . RETURN 2 | . . . . . . . . . . 1 . 1 . . . . . . . . Ally Attacks 28 | . . . . . . . . . . . . . . . . . . . . 28 Total Damage 1474 | . . . . . . . . . . . . . . . . . . . . 1474 Kills 7 | . . . . . . . . . . . . . . . . . . . . 7 Allies Corrupted . | . . . . . . . . . . . . . . . . . . . . . Allies Melted . | . . . . . . . . . . . . . . . . . . . . . Turrets Deployed 1 | . . . . . . . . . . . . . . . . . . . . 1 Intel | -11 -10 -9 -9 -9 -8 -8 -7 -7 -7 -7 -6 -6 -6 -6 -5 -5 -5 -5 -4 -4 ------- Run | Yrd Mat Mat Min Exi Min Mat Fac Low Low Zio Pro Fac Low Low Fac Upp Upp War Pro Fac Active Infowar (turns) 25026 | 9 1582 140 . . . . 960 380 271 11146 752 787 1671 1162 641 1408 627 1483 674 1333 Optics 9786 | . . . . . . . . . . . . 787 1671 1162 641 1408 627 1483 674 1333 Sensors 5952 | . . . . . . . . . . . . 678 1671 711 641 585 541 1125 . . Seismic 15348 | 9 1582 140 . . . . 960 380 271 11146 752 108 . . . . . . . . Jamming 387 | . . . . . . . . . . . . . . . . . . . . 387 Robot Analysis Total 1 | . . 1 . . . . . . . . . . . . . . . . . . Derelict Logs Recovered 8 | . . . 1 . . . . 1 1 1 . . 2 . . 1 . . 1 . Drone Launches 2 | . . . . . . . . . . 1 . 1 . . . . . . . . Drone Recoveries 2 | . . . . . . . . . . 1 . 1 . . . . . . . . Exploration | -11 -10 -9 -9 -9 -8 -8 -7 -7 -7 -7 -6 -6 -6 -6 -5 -5 -5 -5 -4 -4 ------------- Run | Yrd Mat Mat Min Exi Min Mat Fac Low Low Zio Pro Fac Low Low Fac Upp Upp War Pro Fac Turns Passed 35560 | 164 1598 2616 2281 3501 441 1301 961 380 271 11361 752 787 1671 1248 641 1408 627 1483 674 1394 Spaces Moved 15247 | 76 595 1285 1098 1811 173 524 365 225 158 4119 357 356 781 577 318 579 314 801 301 434 Core 17 | 3 . . . 3 . . . . . . . . . . . . . . . 11 Treads 15198 | 73 595 1285 1098 1808 173 492 365 225 158 4119 357 356 781 577 318 579 314 801 301 423 Legs 32 | . . . . . . 32 . . . . . . . . . . . . . . Wheels . | . . . . . . . . . . . . . . . . . . . . . Hover . | . . . . . . . . . . . . . . . . . . . . . Flight . | . . . . . . . . . . . . . . . . . . . . . Fastest Speed 50 | 50 160 160 160 160 160 120 145 158 158 158 165 160 160 160 160 166 165 163 163 50 Average Speed 168 | 155 222 160 160 173 220 153 178 158 158 161 165 162 171 188 164 169 165 165 163 165 Slowest Speed 900 | 160 240 240 160 900 240 320 237 158 158 238 165 165 250 253 170 170 166 166 163 410 Overloaded Moves . | . . . . . . . . . . . . . . . . . . . . . Propulsion Burnouts . | . . . . . . . . . . . . . . . . . . . . . Robots Hopped . | . . . . . . . . . . . . . . . . . . . . . Potential Cave-ins 11 | . . . . . . . . . . . . . . 11 . . . . . . Cave-ins Triggered 1 | . . . . . . . . . . . . . . 1 . . . . . . Exploration Rate (%) 54 | 5 98 96 99 91 35 47 13 34 53 91 53 14 86 41 13 67 50 88 61 17 Regions Visited 20 Branch Regions 13 Pre-discovered Areas 7 | . . 1 . 1 . . . 1 . 3 . . 1 . . . . . . . Known Exits Taken 13 | . . 1 . . 1 1 1 . . . 1 1 1 1 1 1 1 1 1 . Unknown Exits Taken 7 | 1 1 . 1 1 . . . 1 1 1 . . . . . . . . . . Scrap Searched 15 | . . . 1 . . . . . 2 2 1 . 2 1 . 4 1 . 1 . Spaces Dug 91 | . . 1 . . . . 2 . . 6 . . . 46 1 9 . . . 26 Terrain Destroyed 594 | . . 50 3 26 . 36 40 . . 35 . 14 . 71 21 30 53 2 10 203 Melee 11 | . . 1 . . . . 2 . . . . . . 8 . . . . . . Projectile 80 | . . . 3 4 . . . . . 5 . 1 . . . 4 7 2 10 44 AOE 490 | . . 49 . 22 . 36 38 . . 27 . 13 . 58 20 23 46 . . 158 Terrain Rammed . | . . . . . . . . . . . . . . . . . . . . . Walls Destroyed . | . . . . . . . . . . . . . . . . . . . . . Machines Disabled . | . . . . . . . . . . . . . . . . . . . . . Actions | -11 -10 -9 -9 -9 -8 -8 -7 -7 -7 -7 -6 -6 -6 -6 -5 -5 -5 -5 -4 -4 --------- Run | Yrd Mat Mat Min Exi Min Mat Fac Low Low Zio Pro Fac Low Low Fac Upp Upp War Pro Fac Total 20925 | 100 762 1673 1595 2066 211 829 531 245 181 6140 454 475 1081 659 413 949 374 901 441 845 Wait 2859 | . 39 190 451 102 27 171 70 13 18 678 64 42 275 14 59 297 19 35 107 188 Move 15227 | 75 595 1284 1097 1810 172 523 364 224 157 4118 356 355 780 575 317 578 313 800 300 434 Hop . | . . . . . . . . . . . . . . . . . . . . . Pick Up 193 | 6 15 27 10 29 1 6 9 . 2 24 1 4 5 10 4 14 6 5 1 14 Fast Attach 121 | 6 . 11 1 12 . 16 7 . . 14 1 8 1 . 6 4 3 9 2 20 Attach 82 | 1 2 3 . 6 . 8 7 . . 8 . 5 2 9 4 3 1 . 2 21 Detach 14 | . . . . 2 . 3 . . . . . 1 . 2 1 . . . . 5 Swap 144 | . 9 18 6 4 . 8 3 4 2 36 . 9 3 3 3 8 5 9 . 14 Drop 236 | . 6 42 11 36 1 9 5 2 2 33 2 12 3 6 7 15 6 17 2 19 Fire 1969 | 12 67 93 19 60 10 83 60 2 . 1217 30 39 12 21 11 30 21 26 27 129 Melee 34 | . . 3 . . . . 6 . . 7 . . . 18 . . . . . . Ram . | . . . . . . . . . . . . . . . . . . . . . Kick . | . . . . . . . . . . . . . . . . . . . . . Crush 6 | . . 2 . . . 2 . . . . . . . . 1 . . . . 1 Escape Stasis 1 | . . . . . . . . . . . . . . 1 . . . . . . Rewire . | . . . . . . . . . . . . . . . . . . . . . Trap 39 | . 29 . . 5 . . . . . 5 . . . . . . . . . . Miscellaneous . | . . . . . . . . . . . . . . . . . . . . . Route ------- -11/Scrapyard -10/Materials (discovered 5 exits: *Mat x3 / [*Min] / [*Sub]) -9/Materials (discovered 5 exits: *Mat x3 / *Min x2) -9/Mines (discovered 4 exits: *Mat x2 / *Exi / *Zio) -9/Exiles -8/Mines -8/Materials (discovered 2 exits: *Fac x2) -7/Factory (discovered 5 exits: Fac x2 / Sto / *Low x2) -7/Lower Caves -7/Lower Caves -7/Zion -6/Proximity Caves -6/Factory -6/Lower Caves -6/Lower Caves -5/Factory -5/Upper Caves -5/Upper Caves -5/Warlord -4/Proximity Caves -4/Factory (discovered 2 exits: Res / Ext) History --------- Turn | Location | Event 56 | -11/Scrapyard | Discovered new exit (range 15) 165 | -11/Scrapyard | Entered Materials 208 | -10/Materials | Discovered new exit (range 8) 310 | -10/Materials | Build established: Mutant 644 | -10/Materials | Discovered new exit (range 5) 1006 | -10/Materials | Discovered new exit (range 9) 1229 | -10/Materials | Discovered new exit (range 16) 1538 | -10/Materials | Discovered new exit (range 8) 1762 | -10/Materials | Core integrity fell below 50% 1763 | -10/Materials | Entered another Materials area 1763 | -9/Materials | Evolved 2 slots: Propulsion x1, Weapon x1 2151 | -9/Materials | Discovered new exit (range 9) 2335 | -9/Materials | Discovered new exit (range 14) 2364 | -9/Materials | Destroyed 9 combat bots 2684 | -9/Materials | Build established: Tank 2754 | -9/Materials | Discovered new exit (range 4) 2799 | -9/Materials | Learned 2 Storage zone layouts 2831 | -9/Materials | Identified exit to Materials 2844 | -9/Materials | Identified exit to Mines 2851 | -9/Materials | Learned location of 1 exit from Materials 2859 | -9/Materials | Loaded intel: 2 repair station locations 2860 | -9/Materials | Learned location of Zion (-7) 2861 | -9/Materials | Learned Storage stockpile data 2862 | -9/Materials | Learned Storage non-interactive machine intel 2869 | -9/Materials | Learned 2 Storage zone layouts 2884 | -9/Materials | Learned Materials repair station intel 2907 | -9/Materials | Learned location of 1 exit from Recycling 3462 | -9/Materials | Build established: Scavenger-Tank 4379 | -9/Materials | Entered Mines 4380 | -9/Mines | A Derelict revealed a hidden shortcut to a safe place 4503 | -9/Mines | Discovered exit to Materials (range 4) 4560 | -9/Mines | Joined a pair of Derelicts in attacking an 0b10 outpost 4766 | -9/Mines | Found a hidden stash of uninstalled traps 4888 | -9/Mines | Discovered exit to Materials (range 6) 5034 | -9/Mines | Learned Materials terminal intel 5163 | -9/Mines | Deemed a non-threat by the Exiles lab entrance 5164 | -9/Mines | Discovered new exit (range 5) 6660 | -9/Mines | Entered Exiles 6708 | -9/Exiles | Met 8R-AWN 6732 | -9/Exiles | Met EX-HEX 6777 | -9/Exiles | Met EX-BIN 6795 | -9/Exiles | Aligned with FarCom system 6796 | -9/Exiles | Given EX-Vault access code 6833 | -9/Exiles | Opened EX-Vault 6875 | -9/Exiles | Warned to stay clear of 0b10 Research branches 6920 | -9/Exiles | Met EX-DEC 6992 | -9/Exiles | Build established: Scavenger-Mutant 7109 | -9/Exiles | Found AWS/Gauss 7113 | -9/Exiles | Found Gui. Plasma Cannon 8439 | -9/Exiles | Attacked by the Exiles 8576 | -9/Exiles | Core integrity fell below 50% 8600 | -9/Exiles | Destroyed 8R-AWN 8625 | -9/Exiles | Lost 5 parts (1p4n) 8774 | -9/Exiles | Found Prototype Ballistic Gun 8774 | -9/Exiles | Identified 8R-AWN's Boregun 8782 | -9/Exiles | Found 8R-AWN's Boregun 8902 | -9/Exiles | Destroyed EX-BIN 8938 | -9/Exiles | Destroyed EX-DEC 8992 | -9/Exiles | Destroyed EX-HEX 9051 | -9/Exiles | Build established: Scavenger-Tank 9134 | -9/Exiles | Found Prototype Device 9134 | -9/Exiles | Identified System Purifier 9698 | -9/Exiles | Found Deploy-a-Sentry 9860 | -9/Exiles | Discovered new exit (range 14) 9978 | -9/Exiles | Build established: Scavenger-Gunner 10161 | -9/Exiles | Stole three prototypes: Gui. Plasma Cannon, AWS/Gauss, Deploy-a-Sentry 10161 | -9/Exiles | Entered Mines 10592 | -8/Mines | Discovered exit to Materials (range 5) 10602 | -8/Mines | Entered Materials 10602 | -8/Materials | Evolved 2 slots: Propulsion x1, Utility x1 10603 | -8/Materials | Identified exit to Factory 10604 | -8/Materials | Loaded intel: 12 terminal locations 10605 | -8/Materials | Loaded intel: 2 repair station locations 11167 | -8/Materials | Build established: Gunner 11195 | -8/Materials | Garrison activated, responded to threat 11393 | -8/Materials | Garrison activated, responded to threat 11461 | -8/Materials | Destroyed 7 combat bots 11675 | -8/Materials | Learned 4 Recycling zone layouts 11729 | -8/Materials | Discovered exit to Factory (range 16) 11746 | -8/Materials | Learned Storage trap positions 11790 | -8/Materials | Build established: Scavenger-Gunner 11806 | -8/Materials | Learned location of 3 exits from Factory 11854 | -8/Materials | Learned 2 Lower Caves zone layouts 11890 | -8/Materials | Learned Factory trap positions 11903 | -8/Materials | Entered Factory 11903 | -7/Factory | Evolved 2 slots: Utility x2 11904 | -7/Factory | Identified exit to Storage 11905 | -7/Factory | Identified exit to Lower Caves 11905 | -7/Factory | Identified exit to Factory 11906 | -7/Factory | Loaded intel: 72 trap records 11940 | -7/Factory | Garrison activated, responded to threat 12023 | -7/Factory | Lost 3 parts (1p2n) 12535 | -7/Factory | Discovered exit to Lower Caves (range 13) 12543 | -7/Factory | Lost 3 parts (1n1u1w) 12864 | -7/Factory | Entered Lower Caves 12874 | -7/Lower Caves | Attracted the attention of an 0b10 checkpoint 13211 | -7/Lower Caves | Learned location of Extension (-4) 13225 | -7/Lower Caves | Discovered new exit (range 7) 13244 | -7/Lower Caves | Entered another Lower Caves area 13262 | -7/Lower Caves | Entered a destroyed Warlord outpost 13409 | -7/Lower Caves | Encountered a Warlord checkpoint 13491 | -7/Lower Caves | Learned Factory emergency access door positions 13507 | -7/Lower Caves | Discovered new exit (range 6) 13515 | -7/Lower Caves | Entered Zion 13539 | -7/Zion | Learned Factory emergency access door positions 13677 | -7/Zion | Discovered new exit (range 15) 14084 | -7/Zion | Given the Hacking Drone Bay 14439 | -7/Zion | Learned location of Recycling (-7) 14440 | -7/Zion | Learned location of Warlord (-5) 14634 | -7/Zion | Met Imprinter 14912 | -7/Zion | Attacked by Zionites 14920 | -7/Zion | Destroyed Imprinter 18171 | -7/Zion | Found Prototype Device 18275 | -7/Zion | Identified Bomb Factory No. 2 19957 | -7/Zion | Found Prototype Special Weapon 19957 | -7/Zion | Identified RU-N14's Throwing Claymores 19961 | -7/Zion | Found RU-N14's Throwing Claymores 19964 | -7/Zion | Found RU-N14's Throwing Claymores 20360 | -7/Zion | Found RU-N14's Throwing Claymores 21283 | -7/Zion | Spotted MF-ANA(B) 21360 | -7/Zion | Destroyed MF-ANA(B) 22639 | -7/Zion | Spotted C0-3NH(B) 22756 | -7/Zion | Destroyed C0-3NH(B) 24591 | -7/Zion | Found Prototype Device 24592 | -7/Zion | Identified Hacking Drone Bay 24876 | -7/Zion | Entered Proximity Caves 24878 | -6/Proximity Caves | Spotter reported a threat 24880 | -6/Proximity Caves | Spotter reported a threat 24982 | -6/Proximity Caves | Spotter reported a threat 25095 | -6/Proximity Caves | Spotter reported a threat 25132 | -6/Proximity Caves | Spotter reported a threat 25296 | -6/Proximity Caves | Spotter reported a threat 25547 | -6/Proximity Caves | Discovered exit to Factory (range 8) 25548 | -6/Proximity Caves | Attracted the attention of an 0b10 checkpoint 25621 | -6/Proximity Caves | Spotter reported a threat 25628 | -6/Proximity Caves | Entered Factory 25628 | -6/Factory | Evolved 2 slots: Utility x2 25978 | -6/Factory | Search patrols dispatched 26028 | -6/Factory | Build established: Scavenger-Skirmisher 26324 | -6/Factory | Discovered new exit (range 17) 26328 | -6/Factory | Search patrols dispatched 26360 | -6/Factory | Identified exit to Lower Caves 26415 | -6/Factory | Entered Lower Caves 26415 | -6/Lower Caves | Spotted 00-EM2(f) 26415 | -6/Lower Caves | Spotted QQ-MMU(f) 26417 | -6/Lower Caves | Encountered a Master Thief 26417 | -6/Lower Caves | Encountered a Master Thief 26418 | -6/Lower Caves | AWS/Gauss stolen by Master Thief 26418 | -6/Lower Caves | Gui. Plasma Cannon stolen by Master Thief 27603 | -6/Lower Caves | Learned Factory terminal intel 28025 | -6/Lower Caves | Attracted the attention of an 0b10 checkpoint 28063 | -6/Lower Caves | Discovered new exit (range 9) 28085 | -6/Lower Caves | Identified exit to Lower Caves 28086 | -6/Lower Caves | Entered another Lower Caves area 28415 | -6/Lower Caves | Attracted the attention of an 0b10 outpost 28724 | -6/Lower Caves | Encountered a Warlord checkpoint 28801 | -6/Lower Caves | Build established: Scavenger-Tank 28819 | -6/Lower Caves | Discovered new exit (range 8) 28834 | -6/Lower Caves | Identified exit to Factory 29056 | -6/Lower Caves | Crushed by falling debris 29070 | -6/Lower Caves | Found Prototype Special Weapon 29071 | -6/Lower Caves | Identified Mak. Laser Shovel 29146 | -6/Lower Caves | System corruption reached 10% 29334 | -6/Lower Caves | Entered Factory 29334 | -5/Factory | Evolved 2 slots: Utility x2 29336 | -5/Factory | Loaded intel: 26 terminal locations 29378 | -5/Factory | Build established: Scavenger-Skirmisher 29896 | -5/Factory | Discovered new exit (range 21) 29948 | -5/Factory | Identified exit to Upper Caves 29975 | -5/Factory | Entered Upper Caves 30225 | -5/Upper Caves | Encountered a Warlord checkpoint 30262 | -5/Upper Caves | Attracted the attention of an 0b10 checkpoint 30329 | -5/Upper Caves | Lost 3 allies 30503 | -5/Upper Caves | Spotted B-75 Beast 30583 | -5/Upper Caves | Destroyed B-75 Beast 30628 | -5/Upper Caves | Build established: Scavenger-Gunner 30709 | -5/Upper Caves | Learned location of 2 exits from Factory 31053 | -5/Upper Caves | Discovered new exit (range 15) 31136 | -5/Upper Caves | Build established: Scavenger-Mutant 31381 | -5/Upper Caves | Identified exit to Upper Caves 31383 | -5/Upper Caves | Entered another Upper Caves area 31383 | -5/Upper Caves | Spotted UJ-TYG(f) 31383 | -5/Upper Caves | Spotted E0-CY1(f) 31385 | -5/Upper Caves | Encountered a Master Thief 31385 | -5/Upper Caves | Encountered a Master Thief 31385 | -5/Upper Caves | Destroyed UJ-TYG(f) 31385 | -5/Upper Caves | Spotted 3I-ZFT(f) 31386 | -5/Upper Caves | Encountered a Master Thief 31387 | -5/Upper Caves | Adv. Weapon Cycler stolen by Master Thief 31397 | -5/Upper Caves | Hacking Drone Bay stolen by Master Thief 31477 | -5/Upper Caves | Attracted the attention of an 0b10 checkpoint 31783 | -5/Upper Caves | Build established: Scavenger-Tank 31973 | -5/Upper Caves | Discovered new exit (range 10) 32008 | -5/Upper Caves | Identified exit to Warlord 32010 | -5/Upper Caves | Entered Warlord 32072 | -5/Warlord | System corruption cleaned by Quarantine Array 32865 | -5/Warlord | Warlord's base attacked by MAIN.C 32885 | -5/Warlord | Met Warlord 33215 | -5/Warlord | Warlord forces counterattacked 33221 | -5/Warlord | Found Prototype Energy Gun 33224 | -5/Warlord | Found Prototype Energy Gun 33321 | -5/Warlord | Spotted Striker 33370 | -5/Warlord | Lost 5 allies 33374 | -5/Warlord | Spotted Executioner 33374 | -5/Warlord | Spotted Executioner 33421 | -5/Warlord | Destroyed Executioner 33447 | -5/Warlord | Found Exp. Targeting Computer 33450 | -5/Warlord | Lost 10 allies 33465 | -5/Warlord | Spotted Striker 33467 | -5/Warlord | Spotted Striker 33470 | -5/Warlord | Discovered new exit (range 12) 33492 | -5/Warlord | Identified exit to Proximity Caves 33493 | -5/Warlord | Entered Proximity Caves 33511 | -4/Proximity Caves | Lost 7 allies 33593 | -4/Proximity Caves | Learned Research garrison access intel 33879 | -4/Proximity Caves | Spotted B-86 Titan 34017 | -4/Proximity Caves | Destroyed B-86 Titan 34156 | -4/Proximity Caves | Discovered new exit (range 7) 34165 | -4/Proximity Caves | Identified exit to Factory 34167 | -4/Proximity Caves | Entered Factory 34167 | -4/Factory | Evolved 2 slots: Utility x2 34168 | -4/Factory | Identified exit to Extension 34168 | -4/Factory | Identified exit to Research 34471 | -4/Factory | Lost 3 parts (1n1u1w) 34782 | -4/Factory | Spotted B-86 Titan 34807 | -4/Factory | Build established: Scavenger-Gunner 34880 | -4/Factory | Destroyed B-86 Titan 34917 | -4/Factory | Lost 4 parts (2n1u1w) 34952 | -4/Factory | Found Hvy. Reflective Plating 35297 | -4/Factory | Garrison activated, responded to threat 35302 | -4/Factory | DAS Turret deployed 35343 | -4/Factory | Cargo convoy interrupted 35350 | -4/Factory | System corruption reached 10% 35407 | -4/Factory | Lost 4 parts (1n1u2w) 35417 | -4/Factory | First assault squad dispatched 35465 | -4/Factory | Found Prototype Processor 35465 | -4/Factory | Identified Exp. Core Analyzer 35474 | -4/Factory | Found Prototype Processor 35474 | -4/Factory | Identified Exp. Signal Interpreter 35480 | -4/Factory | Found Exp. Core Analyzer 35514 | -4/Factory | Found Exp. Core Analyzer 35540 | -4/Factory | Core integrity fell below 50% 35548 | -4/Factory | Core integrity fell below 20% 35555 | -4/Factory | Identified Vortex Rail (x2) 35561 | -4/Factory | Destroyed self via exploding Fusion Modulator Last Messages --------------- 35545_ Dropped Hcp. Storage Unit. 35545_ U-05 Engineer lays Concrete. 35547_ The unstable cave ceiling collapses. 35547_ C-30 ARC bursts open, deploying its payload. 35547_ G-73 Enforcer unfolds itself. 35547_ G-67 Veteran unfolds itself. 35547_ B-60 Warrior unfolds itself. 35547_ I-47 Archangel unfolds itself. 35547_ G-67 Veteran destroyed. 35547_ Critical hit (Burn: +50). 35547_ Penetrated by Slug. 35547_ M-36 Artificer suffers critical hit (Blast). 35547_ M-36 Artificer destroyed. 35548_ K-01 Serf collects debris. 35548_ U-05 Engineer lays Concrete. 35549_ Dropped Hcp. Storage Unit. 35549_ Imp. Q-thruster destroyed. 35549_ U-05 Engineer lays Concrete. 35555_ Identified Vortex Rail. 35559_ Vortex penetrates Wall. Map ----- +----------------------------------------------------+ | #?############???????????????????????????????? | | #?# = ????????????????????????????????? | | ### ??#?????????????????????????????? | | # """ """ #??????????? ????????????????? | | # """ """ #?????????? #???????????????? | | # """ """ #????????? #???????????????? | | # #???????? ##??????????????? | | + """ """ #???????"" #??????????????? | | # """ """ #????? ??????????????? | | # """ """ #??? " ?????????????? | | % # #?? " ?????????????? | | %] # ?## ** ????????????? | | ##] # #*%* ????????????? | | ################# # * %! ????????????? | | !A!==%!*[ [ % ???????????? | | !=[!==!*=!** ???????????? | | ==!===%[%*! ??????????? | | %%= [%= %*!!%%]%| =%[ ??????????? | | * * [/*=*![=]& H ??????????? | | "% !/=*!=%=%!% ??????????? | | "! //%=!!!%=% % ##"" ??????????? | | ## ## #######[%;# #####??"""""# ???????????? | | ?# [ % [%==*]#=! = #???????#??????????????? | | ?### !=# % #??????????????????????? | | ???# # ! ; ## ##????????????????? | | ???# """ """ #[ @ #????????????????? | | ???# """ """ #########; ;;;;;;????????????????? | | ???# """ """ #????????? ;??